Cogmind - Beta 9 *** ADVENTURER MODE // 2019.10.25 @ 15:26:16 Player: Bob Result: Self-destructed Performance ------------- Evolutions (1) 500 Regions Visited (2) 400 Robots Destroyed (12) 60 Value Destroyed (300) 300 Prototype IDs (0) 0 Alien Tech Used (0) 0 Bonus (0) 0 TOTAL SCORE: 1260 Bonus ------- None Cogmind --------- Core Integrity 234/400 Matter 300/300 Energy 100/100 System Corruption 0% Temperature Cool (0) Location -9/Materials Parts ------- Power (1) Propulsion (3) VTOL Module Utility (3) Small Storage Unit Weapon (2) Mining Claw Inventory (6) Improved Ion Engine VTOL Module Hardened Light Armor Plating Hardened Light Armor Plating Hardened Light Armor Plating Grenade Launcher Peak State ------------ Power Improved Ion Engine Propulsion VTOL Module VTOL Module VTOL Module Utility Small Storage Unit Weapon Light Assault Rifle Mining Claw Inventory Improved Ion Engine VTOL Module Hardened Light Armor Plating Hardened Light Armor Plating Hardened Light Armor Plating Grenade Launcher [Rating: 12] Favorites ----------- Power Ion Engine Engine Ion Engine Propulsion Aluminum Leg Leg Aluminum Leg Flight Unit VTOL Module Utility Small Storage Unit Storage Small Storage Unit Weapon Light Assault Rifle Ballistic Gun Light Assault Rifle Slashing Weapon Mining Claw Build | -11 -10 -9 ------- Run | Scr Mat Mat Slots Evolved 2 | . . 2 Power . | . . . Propulsion 1 | . . 1 Utility 1 | . . 1 Weapon . | . . . Parts Attached 16 | 6 4 6 Power 2 | 1 1 . Engine 2 | 1 1 . Core . | . . . Reactor . | . . . Propulsion 10 | 2 2 6 Treads . | . . . Leg 3 | 2 1 . Wheel . | . . . Hover . | . . . Flight 7 | . 1 6 Utility 1 | 1 . . Device . | . . . Storage 1 | 1 . . Processor . | . . . Hackware . | . . . Protection . | . . . Artifact . | . . . Weapon 3 | 2 1 . Energy Gun . | . . . Energy Cannon . | . . . Ballistic Gun 2 | 2 . . Ballistic Cannon . | . . . Launcher . | . . . Special Weapon . | . . . Impact Weapon . | . . . Slashing Weapon 1 | . 1 . Piercing Weapon . | . . . Special Melee Weapon . | . . . Unidentified Prototypes . | . . . Parts Lost 3 | . . 3 Power 1 | . . 1 Propulsion 2 | . . 2 Utility . | . . . Weapon . | . . . Highest Loss Streak 3 | . . 3 Average Slot Usage (%) 80 | . 85 69 Engine 13 | . 14 11 Leg 19 | . 28 . Flight 9 | . . 33 Storage 13 | . 14 11 Ballistic Gun 16 | . 21 3 Slashing Weapon 7 | . 6 11 Naked Turns . | . . . Heaviest Build 14 | 11 14 14 Greatest Support 20 | 20 20 15 Greatest Overweight (x) 1 | . . 1 Average Overweight (x) . | . . . Largest Inventory Capacity 6 | 6 6 6 Average Capacity 5 | 5 6 6 Most Carried 6 | 3 6 6 Average Carried 3 | . 3 5 Final Capacity 6 | . . 6 Final Carried 6 | . . 6 Class Distribution -------------------- 100% | Mutant Dominant Class ---------------- Mutant | -10/Materials Mutant | -9/Materials Resources | -11 -10 -9 ----------- Run | Scr Mat Mat Matter Collected 388 | 204 114 70 Remotely . | . . . Salvage Created 484 | . 200 284 Parts 20 | . 10 10 Haulers Intercepted 1 | . 1 . Recyclers Shooed . | . . . Parts Field Recycled . | . . . Retrieved Matter . | . . . Parts Self-Destructed . | . . . Prevented . | . . . Kills | -11 -10 -9 ------- Run | Scr Mat Mat Combat Hostiles Destroyed 10 | . 3 7 Melee 5 | . . 5 Guns 3 | . 3 . AOE 2 | . . 2 Classes Destroyed 5 | . 3 2 Hauler 1 | . 1 . Recycler 1 | . 1 . Swarmer 3 | . 3 . Grunt 6 | . . 6 Sentry 1 | . . 1 Best Kill Streak 5 | . 4 5 Combat Bots Only 5 | . 3 5 Max Kills in Single Turn 2 | . 1 2 Gunslinging . | . . . Exploded 2 | . . 2 Melee 1 | . . 1 Uniques/NPCs Destroyed . | . . . Combat | -11 -10 -9 -------- Run | Scr Mat Mat Damage Taken 436 | . 84 352 Core 180 | . 14 166 Absorbed by Shields . | . . . Core Remaining (%) 97 | 100 94 . Volleys Fired 14 | . 14 . Largest 2 | . 2 . Hottest 40 | . 40 . Shots Fired 28 | . 28 . Gun 28 | . 28 . Cannon . | . . . Launcher . | . . . Special . | . . . Kinetic 28 | . 28 . Thermal . | . . . Explosive . | . . . Electromagnetic . | . . . Robot Hit Streak 7 | . 7 . Robot Miss Streak 2 | . 2 . Penetration Max . | . . . Secondary Targets 2 | . 2 . Max Gunslinging Chain 1 | . 1 . Shots Hit Robots 36 | . 20 16 Core Hits 15 | . 9 6 Critical Hits . | . . . Critical Kills . | . . . Critical Parts Destroyed . | . . . Melee Attacks 17 | . . 17 Impact . | . . . Slashing 17 | . . 17 Piercing . | . . . Sneak Attacks . | . . . Combat Hostiles . | . . . Follow-up Attacks . | . . . Damage Inflicted 491 | . 169 322 Guns 169 | . 169 . Cannons . | . . . Explosions . | . . . Melee 322 | . . 322 Ramming . | . . . Kinetic 169 | . 169 . Thermal . | . . . Explosive . | . . . Electromagnetic . | . . . Impact . | . . . Slashing 322 | . . 322 Piercing . | . . . Highest Corruption 1 | . 1 . Average Corruption 1 | . 1 . Corruption Purged . | . . . Effects 1 | . 1 . Message Errors 1 | . 1 . Overload Shots . | . . . Overflow Damage . | . . . Projectiles . | . . . Explosions . | . . . Melee . | . . . Knockbacks . | . . . Impact . | . . . Kinetic . | . . . Secondary . | . . . Self-Inflicted Damage . | . . . Shots . | . . . Rammed . | . . . Targets Rammed . | . . . Kicked . | . . . Crushed . | . . . Highest Temperature 3 | . . 3 Average Temperature 3 | . . 3 Received Heat Transfer 141 | . . 141 Siege Activations . | . . . Robots Corrupted . | . . . Combat Hostiles . | . . . Parts Fried . | . . . Impact Corruptions . | . . . Robots Melted . | . . . Combat Hostiles . | . . . Parts Melted . | . . . Heat Transferred . | . . . Parts Sabotaged . | . . . Parts Stolen . | . . . Parts Stripped . | . . . Power Chain Reactions . | . . . Missiles Intercepted . | . . . Alert | -11 -10 -9 ------- Run | Scr Mat Mat Peak Influence 244 | . 97 244 Average Influence 69 | . 60 113 Maximum Alert Level 1 | . . 1 Low Security (%) 98 | . . . Level 1 1 | . . . Level 2 . | . . . Level 3 . | . . . Level 4 . | . . . Level 5 . | . . . High Security . | . . . Max Security . | . . . Squads Dispatched 2 | . . 2 Investigation . | . . . Extermination . | . . . Reinforcement 2 | . . 2 Assault . | . . . Garrison . | . . . Intercept . | . . . Construction Impeded . | . . . Haulers Reinforced . | . . . Stealth | -11 -10 -9 --------- Run | Scr Mat Mat Distress Signals 1 | . . 1 Communications Jammed . | . . . Distress Signals . | . . . Times Spotted 17 | . 6 11 Peak Tracking Total 8 | . 4 8 Tactical Retreats . | . . . Traps | -11 -10 -9 ------- Run | Scr Mat Mat Traps Triggered 2 | . 2 . Indirectly . | . . . Trap Hack Attempts . | . . . Triggered . | . . . Disarmed . | . . . Reprogrammed . | . . . Reused . | . . . Traps Extracted . | . . . Installed . | . . . Triggered . | . . . Machines | -11 -10 -9 ---------- Run | Scr Mat Mat Machines Disabled . | . . . Max in Single Turn . | . . . Machines Sabotaged . | . . . Garrisons Compromised . | . . . Overloaded Fab Kills . | . . . Fab Network Shutdowns . | . . . Hacking | -11 -10 -9 --------- Run | Scr Mat Mat Machines Accessed . | . . . Terminals . | . . . Fabricators . | . . . Repair Stations . | . . . Recycling Units . | . . . Scanalyzers . | . . . Garrison Access . | . . . Total Hacks . | . . . Successful . | . . . Failed . | . . . Catastrophic . | . . . Database Lockouts . | . . . Manual . | . . . Terminals . | . . . Fabricators . | . . . Repair Stations . | . . . Recycling Units . | . . . Scanalyzers . | . . . Garrison Access . | . . . Terminal Hacks . | . . . Fabricator Hacks . | . . . Repair Station Hacks . | . . . Recycling Unit Hacks . | . . . Scanalyzer . | . . . Garrison Access Hacks . | . . . Unauthorized Hacks . | . . . Terminals . | . . . Fabricators . | . . . Repair Stations . | . . . Recycling Units . | . . . Scanalyzers . | . . . Garrison Access . | . . . Data Cores Recovered . | . . . Used . | . . . Hacking Detections . | . . . Full Trace Events . | . . . Feedback Events . | . . . Feedback Blocked . | . . . Robot Schematics Acquired . | . . . Robots Built . | . . . Matter . | . . . Time . | . . . Total Robot Build Rating . | . . . Part Schematics Acquired . | . . . Parts Built . | . . . Matter . | . . . Time . | . . . Total Part Build Rating . | . . . Parts Repaired . | . . . Time . | . . . Parts Recycled . | . . . Recycled Matter . | . . . Retrieved Matter . | . . . Retrieved Components . | . . . Parts Scanalyzed . | . . . Part Schematics Acquired . | . . . Parts Damaged . | . . . Bothacking | -11 -10 -9 ------------ Run | Scr Mat Mat Used RIF Installer . | . . . Robots Hacked . | . . . Non-combat . | . . . Combat . | . . . Robot Hacks Applied . | . . . Relay Couplers Released . | . . . Robots Rewired . | . . . Allies Hacked . | . . . Hacks Repelled . | . . . Allies | -11 -10 -9 -------- Run | Scr Mat Mat Total Allies . | . . . Largest Group . | . . . Highest-Rated Group . | . . . Highest-Rated Ally . | . . . Total Orders . | . . . Ally Attacks . | . . . Total Damage . | . . . Kills . | . . . Allies Corrupted . | . . . Allies Melted . | . . . Intel | -11 -10 -9 ------- Run | Scr Mat Mat Robot Analysis Total . | . . . Derelict Logs Recovered . | . . . Drone Launches . | . . . Drone Recoveries . | . . . Exploration | -11 -10 -9 ------------- Run | Scr Mat Mat Turns Passed 528 | 47 333 148 Spaces Moved 352 | 33 233 86 Core 6 | 6 . . Treads . | . . . Legs 260 | 27 233 . Wheels . | . . . Hover . | . . . Flight 86 | . . 86 Fastest Speed 34 | 50 120 34 Average Speed 101 | 107 120 50 Slowest Speed 120 | 120 120 114 Overloaded Moves . | . . . Propulsion Burnouts . | . . . Robots Hopped . | . . . Cave-ins Triggered . | . . . Exploration Rate (%) 20 | 3 44 13 Regions Visited 2 Branch Regions . Pre-discovered Areas . | . . . Known Exits Taken . | . . . Unknown Exits Taken 2 | 1 1 . Scrap Searched . | . . . Spaces Dug . | . . . Terrain Destroyed . | . . . Melee . | . . . Projectile . | . . . AOE . | . . . Actions | -11 -10 -9 --------- Run | Scr Mat Mat Total 464 | 44 262 158 Wait 39 | . 4 35 Move 350 | 32 232 86 Hop . | . . . Pick Up 20 | 6 7 7 Fast Attach . | . . . Attach 9 | 6 . 3 Detach . | . . . Swap 7 | . 4 3 Drop 8 | . 1 7 Fire 14 | . 14 . Melee 17 | . . 17 Ram . | . . . Kick . | . . . Crush . | . . . Escape Stasis . | . . . Rewire . | . . . Trap . | . . . Miscellaneous . | . . . Route ------- -11/Scrapyard -10/Materials (discovered 3 exits: [*Mat x2] / [*Min]) -9/Materials History --------- Turn | Location | Event 6 | -11/Scrapyard | Discovered new exit (range 15) 48 | -11/Scrapyard | Entered Materials 76 | -10/Materials | Discovered new exit (range 10) 194 | -10/Materials | Discovered new exit (range 9) 325 | -10/Materials | Build established: Mutant 360 | -10/Materials | Discovered new exit (range 11) 381 | -10/Materials | Entered another Materials area 381 | -9/Materials | Evolved 2 slots: Propulsion x1, Utility x1 529 | -9/Materials | Self-destructed Last Messages --------------- 00443_ Ion Engine ripped off. 00444_ U-05 Engineer lays Concrete. 00448_ M-13 Machinist fits Backup Power I on G-34 Mercenary. 00449_ G-34 Mercenary destroyed. 00463_ Acquired 32 matter. 00463_ Acquired 38 matter. 00472_ W-16 Scout distress signal alerts nearby ally. 00507_ Ion Engine ripped off. 00510_ G-34 Mercenary destroyed. 00513_ Lgt. Nuclear Core ripped off. 00523_ G-47 Trooper destroyed. 00526_ Y-45 Defender destroyed. 00527_ Nuclear Reactor explodes. 00527_ Imp. Ion Engine destroyed. 00527_ VTOL Module destroyed. 00527_ Terminal disabled. 00527_ G-34 Mercenary destroyed. 00527_ Fusion Modulator explodes. 00527_ M-13 Machinist destroyed. 00527_ VTOL Module destroyed. Map ----- +----------------------------------------------------+ | | | | | | | | | | | | | | | | | | | | | | | | | | | | | | | | | | | | | | | ###########??????##;;;;; #####???????????????? | | #??????# ; [ #???????????????? | | " """ "" #???????#; #???????????????? | | " """ """#???????#; #???????????????? | | " """ R"#???????#; #???????????????? | | """#???????#; " #???????????????? | | #???????#; @ #???????????????? | | ###+###############;;; = ##???????????????? | | * %[ !g*%= ##????????????????? | | * =%%* #?????????????????? | | * #?????????????????? | | #T######## ### ######## #?????????????????? | | ###????? ## #??????# #?????????????????? | | ??????# ## #??????# #?????????????????? | | ??????######## #??????# #?????????????????? | | ?????????????# #??????# #?????????????????? | | ?????????????# #??????# ????????????????? | | ?????????????# #??????# ???????????????? | | ?????????????# #??????# ??????????????? | | ?????????????# #??????# ?????????????? | | ?????????????# #??????# w""" """ ????????????? | | ?????????????# #??????# """ """? ????????????? | | ????????????? ! ??????? "?? "????????????????? | | ????????????? ??????? ??? ????????????????? | | ????????????? ??????? ??????????????????????? | | ????????????? ??????? ??????????????????????? | | ?????????????????????????????????????????????????? | | ?????????????????????????????????????????????????? | | ?????????????????????????????????????????????????? | | ?????????????????????????????????????????????????? | | ?????????????????????????????????????????????????? | +----------------------------------------------------+ Best States ------------- Heat Dissipation 28 Energy Generation 12 Energy Capacity 265 Matter Stores 300 Matter Capacity 300 Sight Range 16 Terrain Scan Density 10 Resistance: KI 20 Resistance: TH 20 Resistance: EX 20 Resistance: EM 20 Resistance: I 20 Resistance: S 20 Resistance: P 20 Evasion (%) 63 Item Schematics ----------------- None Robot Schematics ------------------ None Fabricated ------------ Nothing Alien Tech Used ----------------- None Achievements -------------- None Challenges ------------ None Game ------ Seed MolecularSmallModule Manual? 0 Play Time 00:07:12 Cumulative 156.9 hours Start 2019.10.25 @ 15:20:54 End 2019.10.25 @ 15:26:16 Sessions 1 Manual Loads 0 Difficulty Adventurer Special Mode None Game No. 254 Rogue 228 Adventurer 13 Explorer 0 Win Type - Total 0 Types 0/0/0/0/0/0/0 Lore% 41 Gallery% 56 Achievement% 16 Wizard Run 0 Options --------- ASCII 0 Keyboard 0 Movement Mouse Keybinds 0 Fullscreen 0 Font 16/SmallcapsGlow Map View 76x50 Tactical HUD 1 Map Filters NONE Filters NONE Steam 1 RUN: d032c2e4-afdf-4cec-8e00-cb32e027ad33